fUSD/lending_fUSD_20250823
["ID","MTS","AMOUNT","RATE_DAILY","PERIOD"]
[381062240,1755982247390,-1218.0756968,0.000279,3]
[381062241,1755982247402,-3242.856242,0.000279,3]
[381062247,1755982402425,500.0,0.00028767,120]
[381062258,1755982659093,1000.0,0.00028767,120]
[381062269,1755982825691,-151.0,0.00011844,2]
[381062270,1755982829000,-604.81307612,0.00011844,2]
[381062271,1755982831006,-4067.19165229,0.00011844,2]
[381062272,1755982832459,-151.0,0.00011844,2]
[381062273,1755982836082,-205.00159701,0.00011844,2]
[381062274,1755982838561,-151.0,0.00011844,2]
[381062280,1755983000445,500.0,0.00028766,120]
[381062284,1755983168113,168.0,7.9e-07,2]
[381062289,1755983316837,755.89066951,0.00011294,2]
[381062313,1755983432074,-1051.419361,0.00011336,2]
[381062314,1755983432084,-300.0,0.00011393,2]
[381062315,1755983432094,-963.0,0.00011393,2]
[381062316,1755983432103,-500.0,0.00011393,2]
[381062317,1755983432113,-500.0,0.00011393,2]
[381062318,1755983432122,-386.18351965,0.00011393,2]
[381062319,1755983432131,-500.0,0.00011394,2]
[381062320,1755983432140,-203.0,0.00011394,2]
[381062321,1755983432149,-2500.0,0.00011394,2]
[381062322,1755983432159,-500.0,0.00011509,2]
[381062323,1755983432168,-9821.6738883,0.00011844,2]
[381062324,1755983432210,-700.0,0.00011844,2]
[381062325,1755983432222,-400.91180794,0.00011844,2]
[381062326,1755983432231,-191.08819206,0.00012502,2]
[381062327,1755983432244,-108.91180794,0.00012502,2]
[381062328,1755983432254,-500.0,0.00012502,2]
[381062329,1755983432263,-203.0,0.00012502,2]
[381062330,1755983432273,-2500.0,0.00012502,2]
[381062331,1755983432282,-644.59,0.00013699,2]
[381062332,1755983432292,-250.0,0.00015,2]
[381062333,1755983432301,-1523.0,0.00016177,2]
[381062334,1755983432311,-150.99,0.00019339,2]
[381062335,1755983432320,-299.99,0.00019339,7]
[381062336,1755983432329,-348.39,0.00019339,2]
[381062337,1755983432339,-458.60200496,0.00019635,2]
[381062338,1755983432348,-844.27675029,0.00019636,2]
[381062339,1755983432357,-212.10093811,0.00019639,2]
[381062340,1755983432367,-500.0,0.00020164,2]
[381062341,1755983432377,-644.59,0.00020187,2]
[381062342,1755983432386,-150.0,0.00021,2]
[381062343,1755983432396,-193.81,0.0002219,2]
[381062345,1755983432405,-1946.96,0.00024109,2]
[381062347,1755983432415,-666.0,0.00024135,3]
[381062348,1755983432424,-194.51,0.00024276,2]
[381062350,1755983432434,-300.0,0.00024699,2]
[381062353,1755983432443,-2000.0,0.000247,2]
[381062356,1755983432453,-1000.0,0.00024717,2]
[381062358,1755983432462,-200.0,0.00024882,2]
[381062360,1755983432471,-1000.0,0.00024899,2]
[381062362,1755983432481,-301.74,0.000249,2]
[381062363,1755983432490,-6381.07799647,0.000249,2]
[381062385,1755983438033,-154.02039107,0.00011335,2]
[381062386,1755983438043,-127.3234504,0.00011392,2]
[381062387,1755983438091,-84.62226589,0.00011392,2]
[381062388,1755983438100,-4252.30063041,0.000249,2]
[381062389,1755983438111,-2535.47495634,0.000249,2]
[381062390,1755983438145,-7709.94818498,0.000249,2]
[381062391,1755983438154,-2066.65,0.0002492,30]
[381062392,1755983438163,-1000.0,0.0002493,2]
[381062393,1755983438173,-426.93,0.00025,7]
[381062394,1755983438182,-194.51,0.00025292,7]
[381062395,1755983438192,-250.0,0.00025349,2]
[381062396,1755983438201,-1000.0,0.00025405,2]
[381062397,1755983438212,-5000.0,0.00025488,2]
[381062398,1755983438221,-7208.38625732,0.00025597,3]
[381062399,1755983438279,-2739.92194036,0.00025597,3]
[381062460,1755983439999,-1466.43173063,0.00025597,3]
[381062461,1755983440093,-0.00343516,0.00025597,3]
[381062462,1755983440104,-9464.05840473,0.00025597,3]
[381062463,1755983440114,-458.60200496,0.00025597,3]
[381062464,1755983440123,-844.27675029,0.00025597,3]
[381062465,1755983440132,-212.10093811,0.00025597,3]
[381062466,1755983440141,-532.0,0.00025767,2]
[381062467,1755983440151,-727.08877537,0.00026,2]
[381062468,1755983440259,-274.91122463,0.00026,2]
[381062469,1755983440268,-1733.2938447,0.00026,2]
[381062470,1755983440278,-500.0,0.0002616,2]
[381062471,1755983440287,-169.5,0.00026209,2]
[381062472,1755983440296,-1650.0,0.00026278,2]
[381062473,1755983440305,-4993.71012966,0.00026293,5]
[381062508,1755983443201,-15885.09163854,0.00026293,5]
[381062510,1755983443212,-1946.96,0.00026301,5]
[381062512,1755983443223,-194.51,0.00026308,7]
[381062514,1755983443233,-500.0,0.00026349,7]
[381062516,1755983443243,-500.0,0.00026349,7]
[381062517,1755983443253,-500.0,0.00026349,7]
[381062518,1755983443262,-1000.0,0.00026399,2]
[381062519,1755983443272,-370.0,0.000265,2]
[381062520,1755983443281,-1650.0,0.00026549,2]
[381062521,1755983443291,-4284.183,0.00026572,13]
[381062522,1755983443300,-237.137,0.00026572,13]
[381062523,1755983443311,-500.0,0.00026623,7]
[381062524,1755983443321,-868.04,0.00026623,7]
[381062525,1755983443330,-644.59,0.00026676,2]
[381062526,1755983443340,-1650.0,0.0002682,2]
[381062527,1755983443349,-500.0,0.00026897,7]
[381062528,1755983443358,-900.0,0.00026926,10]
[381062529,1755983443367,-900.0,0.00026926,10]
[381062530,1755983443376,-900.0,0.00026926,10]
[381062531,1755983443386,-900.0,0.00026926,10]
[381062532,1755983443395,-900.0,0.00026926,10]
[381062533,1755983443404,-900.0,0.00026926,10]
[381062534,1755983443413,-900.0,0.00026926,10]
[381062535,1755983443422,-900.0,0.00026926,10]
[381062536,1755983443432,-153.20915429,0.00026944,2]
[381062537,1755983443441,-20878.8017682,0.0002699,6]
[381062538,1755983443450,-220.0,0.00027,7]
[381062539,1755983443460,-171.0,0.00027,7]
[381062540,1755983443469,-1439.24949098,0.00027044,2]
[381062541,1755983443479,-1650.0,0.00027091,2]
[381062542,1755983443488,-702.1146297,0.00027091,2]
[381062543,1755983443497,-500.0,0.00027171,7]
[381062544,1755983443506,-1002.0,0.000273,2]
[381062545,1755983443516,-194.51,0.00027324,7]
[381062546,1755983443526,-1650.0,0.00027362,2]
[381062547,1755983443536,-3389.89,0.0002737,2]
[381062548,1755983443545,-301.74,0.0002739,2]
[381062550,1755983443555,-570.4900403,0.00027397,2]
[381062551,1755983443564,-300.0,0.00027397,2]
[381062553,1755983443573,-700.0,0.00027397,2]
[381062555,1755983443583,-1500.0,0.00027397,16]
[381062556,1755983443592,-600.0,0.00027397,80]
[381062557,1755983443601,-1103.1953018,0.00027401,4]
[381062558,1755983443610,-150.56,0.00027407,2]
[381062559,1755983443619,-200.0,0.00027414,2]
[381062560,1755983443628,-221.0,0.00027435,2]
[381062561,1755983443638,-500.0,0.00027445,15]
[381062562,1755983443648,-1000.0,0.00027521,2]
[381062563,1755983443657,-169.5,0.00027579,2]
[381062564,1755983443666,-1650.0,0.00027633,2]
[381062565,1755983443679,-200.0,0.00027657,2]
[381062566,1755983443688,-220.0,0.00027671,14]
[381062567,1755983443697,-171.0,0.00027671,14]
[381062568,1755983443707,-363.0,0.0002768,2]
[381062569,1755983443717,-150.0,0.00027681,2]
[381062570,1755983443726,-10552.87558558,0.00027687,8]
[381062571,1755983446257,-1253.85,0.00027687,8]
[381062576,1755983522802,2000.0,0.000231,120]
[381062577,1755983523148,2000.0,0.00022888,120]
[381062580,1755983600561,500.0,0.00028767,120]
[381062604,1755984201197,453.52085,0.00028767,120]
[381062605,1755984214203,1125.21,0.00028767,120]
[381062614,1755984325968,1009.12480821,0.000108,2]
[381062616,1755984418730,-175.6263796,0.000118,2]
[381062617,1755984418752,-84.72499447,0.0001184,2]
[381062618,1755984420665,-570.2574032,0.0001184,2]
[381062619,1755984422630,-208.18509211,0.0001184,2]
[381062620,1755984424134,-189.64862593,0.0001184,2]
[381062621,1755984426154,-348.14750469,0.0001184,2]
[381062622,1755984428784,-11.1997856,0.0001184,2]
[381062623,1755984437582,205.0,9.8e-05,2]
[381062624,1755984441398,255.15859311,0.000101,2]
[381062631,1755984507127,4646.27805779,0.0001098,2]
[381062632,1755984507148,3014.29516617,0.0001098,2]
[381062643,1755984521978,1746.17715371,0.00010136,2]
[381062649,1755984526849,1355.08913923,0.0001,2]
[381062650,1755984526871,6115.56145911,0.0001,2]
[381062651,1755984526892,5380.12421548,0.0001,2]
[381062665,1755984632358,-454.51705987,0.00011899,2]
[381062666,1755984632417,-745.48294013,0.00011899,2]
[381062667,1755984632427,-153.20915429,0.000119,2]
[381062668,1755984632436,-302.78715897,0.000119,2]
[381062669,1755984632446,-394.66681082,0.000119,2]
[381062670,1755984632455,-206.49362815,0.000119,2]
[381062671,1755984632464,-152.99917311,0.000119,2]
[381062672,1755984632473,-171.54667806,0.000119,2]
[381062673,1755984632482,-500.0,0.00011913,2]
[381062674,1755984632491,-165.50736124,0.00011924,2]
[381062675,1755984632503,-134.49263876,0.00011924,2]
[381062676,1755984632512,-2500.0,0.00011925,2]
[381062677,1755984632521,-500.0,0.00011949,2]
[381062678,1755984632531,-5314.91561287,0.0001195,2]
[381062679,1755984632540,-500.0,0.00011973,2]
[381062680,1755984632549,-500.0,0.00011973,2]
[381062681,1755984632558,-150.0,0.00011998,2]
[381062682,1755984632568,-666.0,0.00011999,2]
[381062683,1755984632577,-7148.47152176,0.00011999,2]
[381062684,1755984632608,-759.09317062,0.00011999,2]
[381062685,1755984632619,-2854.07558447,0.00011999,2]
[381062686,1755984632630,-3098.70086583,0.00011999,2]
[381062689,1755984632680,-809.17065152,0.00011999,2]
[381062691,1755984632691,-455.8107763,0.00011999,2]
[381062694,1755984632703,-54.80609838,0.00011999,2]
[381062696,1755984632713,-3065.34962728,0.00012,2]
[381062698,1755984632724,-720.48845334,0.00012,2]
[381062700,1755984632738,-16176.57666386,0.00012,2]
[381062715,1755984638289,-1161.56001405,0.00012,2]
[381062716,1755984638303,-313.93125095,0.00012,2]
[381062717,1755984638348,-653.75513152,0.00012,2]
[381062718,1755984638360,-1087.04169575,0.00012,2]
[381062719,1755984638371,-138648.8541085,0.00012,2]
[381062720,1755984638383,-1166.55100103,0.00012,2]
[381062721,1755984638414,-438855.96308224,0.00012,2]
[381062722,1755984638423,-2687472.37529986,0.00012,2]
[381062723,1755984638432,-302.0,0.00012,2]
[381062724,1755984638442,-2235918.44321551,0.00012,2]
[381062725,1755984638471,-6661.54687367,0.00012,2]
[381062726,1755984638532,-1155.788706,0.00012,2]
[381062727,1755984638543,-2311.16,0.00012,2]
[381062728,1755984638595,-15314.74523887,0.00012,2]
[381062729,1755984638606,-3000.0,0.00012,2]
[381062730,1755984638651,-3403.53953495,0.00012,2]
[381062746,1755984640322,-500.0,0.00012,2]
[381062749,1755984640335,-1702.72852436,0.00012,2]
[381062751,1755984640345,-26534.46708166,0.00012,2]
[381062756,1755984640383,-325.96524978,0.00012,2]
[381062762,1755984640444,-853.86922575,0.00012,2]
[381062763,1755984640454,-2110.20270171,0.00012,2]
[381062764,1755984640617,-478062.05074801,0.00012,2]
[381062765,1755984640627,-3288.81,0.00012,2]
[381062766,1755984640636,-99913.34,0.00012,2]
[381062767,1755984640645,-1000.0,0.00012521,2]
[381062768,1755984640655,-1041.05545804,0.00012521,2]
[381062769,1755984640664,-156555.27486023,0.00013,2]
[381062770,1755984640673,-4343.9577659,0.00013,2]
[381062771,1755984640682,-255.0,0.00013078,2]
[381062772,1755984640692,-1680.0,0.00013089,2]
[381062773,1755984640702,-2000.0,0.0001309,3]
[381062774,1755984640710,-2500.0,0.0001309,2]
[381062775,1755984640720,-2000.0,0.0001309,3]
[381062776,1755984640729,-310.0,0.0001309,2]
[381062777,1755984640738,-150.0,0.0001309,2]
[381062778,1755984640747,-300.0,0.0001309,2]
[381062779,1755984640756,-500.0,0.0001309,2]
[381062780,1755984640765,-250.0,0.0001309,2]
[381062781,1755984640774,-203.0,0.0001309,2]
[381062782,1755984640783,-150.0,0.0001309,4]
[381062783,1755984640793,-172.0,0.00013091,2]
[381062784,1755984640803,-294.11072785,0.00013657,2]
[381062786,1755984640813,-398.87,0.00013699,2]
[381062787,1755984640822,-614.98,0.00013699,2]
[381062788,1755984640832,-500.0,0.00013699,2]
[381062790,1755984640841,-500.0,0.00013699,2]
[381062792,1755984640850,-500.0,0.00013699,2]
[381062794,1755984640860,-500.0,0.00013699,2]
[381062796,1755984640869,-164.10560054,0.00013699,2]
[381062798,1755984640878,-500.0,0.00013699,2]
[381062800,1755984640887,-500.0,0.00013699,2]
[381062802,1755984640896,-500.0,0.00013699,2]
[381062804,1755984640905,-500.0,0.00013699,2]
[381062806,1755984640914,-500.0,0.00013699,2]
[381062808,1755984640923,-522.15161724,0.00013699,2]
[381062810,1755984640932,-500.0,0.00013699,2]
[381062812,1755984640941,-500.0,0.00013699,2]
[381062813,1755984640951,-1336.24923595,0.0001372,2]
[381062814,1755984640960,-204.30601419,0.00013859,2]
[381062815,1755984640969,-20333.87,0.0001389,2]
[381062816,1755984640978,-13045.20404706,0.000139,2]
[381062817,1755984640987,-14031.55537864,0.00014,3]
[381062818,1755984640998,-250.18490232,0.00014,7]
[381062819,1755984641007,-302.78715895,0.00014168,2]
[381062820,1755984641016,-206.49362813,0.00014171,2]
[381062821,1755984641025,-185.0,0.0001423,2]
[381062822,1755984641034,-500.0,0.00014247,2]
[381062823,1755984641044,-215.83437767,0.00014247,2]
[381062824,1755984641053,-1000.0,0.00014247,2]
[381062825,1755984641062,-1000.0,0.00014247,2]
[381062826,1755984641071,-1000.0,0.00014247,2]
[381062827,1755984641080,-1000.0,0.00014247,2]
[381062828,1755984641090,-1000.0,0.00014247,2]
[381062829,1755984641099,-1000.0,0.00014247,2]
[381062830,1755984641109,-1000.0,0.00014247,2]
[381062831,1755984641119,-1000.0,0.00014247,2]
[381062832,1755984641128,-1000.0,0.00014247,2]
[381062833,1755984641137,-433.0,0.00014254,2]
[381062834,1755984641147,-2351.0,0.00014398,2]
[381062835,1755984641156,-1950.0,0.00014423,2]
[381062836,1755984641165,-459.0,0.00014495,2]
[381062837,1755984641175,-1400.20012399,0.00014666,2]
[381062838,1755984641183,-1500.0,0.00014795,2]
[381062839,1755984641193,-1500.0,0.00014795,2]
[381062840,1755984641202,-1500.0,0.00014795,2]
[381062841,1755984641211,-1500.0,0.00014795,2]
[381062842,1755984641221,-1500.0,0.00014795,2]
[381062843,1755984641231,-1500.0,0.00014795,2]
[381062844,1755984641240,-1500.0,0.00014795,2]
[381062845,1755984641249,-19050.32304266,0.00015,2]
[381062846,1755984641258,-1634.0,0.00015018,2]
[381062847,1755984641267,-512.0,0.00015092,2]
[381062848,1755984641276,-1517.64,0.000153,2]
[381062849,1755984641285,-245.28691715,0.00015342,2]
[381062850,1755984641299,-2000.0,0.00015342,2]
[381062851,1755984641309,-807.87174233,0.00015342,2]
[381062852,1755984641318,-2000.0,0.00015342,2]
[381062853,1755984641327,-1410.64582533,0.00015342,2]
[381062854,1755984641338,-718.03944372,0.00015342,2]
[381062855,1755984641347,-500.0,0.00015373,2]
[381062856,1755984641356,-276.17418804,0.00015373,2]
[381062857,1755984641366,-500.0,0.00015373,2]
[381062858,1755984641376,-500.0,0.00015373,2]
[381062859,1755984641385,-500.0,0.00015373,2]
[381062860,1755984641394,-500.0,0.00015373,2]
[381062861,1755984641404,-16370.31930325,0.000154,2]
[381062862,1755984641413,-3288.81,0.000154,2]
[381062863,1755984641422,-99913.34,0.000154,2]
[381062864,1755984641431,-497.86348787,0.000154,2]
[381062865,1755984641440,-736.0,0.00015538,2]
[381062866,1755984641449,-2311.0,0.00015838,2]
[381062867,1755984641459,-2500.0,0.0001589,2]
[381062868,1755984641468,-2500.0,0.0001589,2]
[381062869,1755984641477,-1000.0,0.00015921,2]
[381062870,1755984641486,-1000.0,0.00015921,2]
[381062871,1755984641496,-1000.0,0.00015921,2]
[381062872,1755984641505,-1104.64875901,0.00015921,2]
[381062873,1755984641514,-2433.41713233,0.00016,2]
[381062874,1755984641523,-554.04627419,0.00016,2]
[381062875,1755984641533,-458.60200496,0.00016,3]
[381062876,1755984641542,-2991.92785472,0.0001616,2]
[381062877,1755984641552,-151.0,0.0001618,2]
[381062878,1755984641560,-151.0,0.00016181,2]
[381062879,1755984641570,-151.0,0.00016195,2]
[381062880,1755984641579,-151.0,0.00016218,2]
[381062881,1755984641589,-200.0,0.0001634,2]
[381062882,1755984641598,-466.8762,0.00016407,2]
[381062883,1755984641607,-302.78715895,0.00016436,2]
[381062884,1755984641616,-3000.0,0.00016438,2]
[381062885,1755984641625,-2500.0,0.00016438,2]
[381062886,1755984641635,-206.49362813,0.00016443,2]
[381062887,1755984641644,-250.0,0.00016468,2]
[381062888,1755984641654,-850.86945684,0.00016468,2]
[381062889,1755984641663,-1500.0,0.00016468,2]
[381062890,1755984641672,-1523.0,0.00016561,2]
[381062891,1755984641681,-150.0,0.00016583,2]
[381062892,1755984641691,-787.77789431,0.00016584,2]
[381062893,1755984641700,-1004.03064961,0.00016585,2]
[381062894,1755984641709,-1220.28340491,0.00016586,2]
[381062895,1755984641718,-1436.53616021,0.00016586,2]
[381062896,1755984641728,-1652.78891551,0.00016587,2]
[381062897,1755984641737,-1869.04167081,0.00016588,2]
[381062898,1755984641746,-2085.29442611,0.00016589,2]
[381062899,1755984641756,-2301.54718141,0.00016589,2]
[381062900,1755984641765,-2517.7999367,0.0001659,2]
[381062901,1755984641774,-300.0,0.00016599,2]
[381062902,1755984641784,-300.0,0.00016599,2]
[381062903,1755984641793,-264781.0387698,0.000166,3]
[381062904,1755984641803,-352.86478907,0.000166,2]
[381062905,1755984642073,-381.016136,0.000166,2]
[381062906,1755984642083,-381.016136,0.000166,2]
[381062907,1755984642093,-211.767634,0.000166,2]
[381062908,1755984642102,-381.016136,0.000166,2]
[381062909,1755984642111,-151.0,0.000166,2]
[381062910,1755984642121,-211.767634,0.000166,2]
[381062911,1755984642130,-381.016136,0.000166,2]
[381062912,1755984642139,-211.767634,0.000166,2]
[381062913,1755984642148,-211.767634,0.000166,2]
[381062914,1755984642157,-405.249616,0.000166,2]
[381062915,1755984642167,-151.0,0.000166,2]
[381062916,1755984642179,-151.0,0.000166,2]
[381062917,1755984642189,-405.249616,0.000166,2]
[381062918,1755984642199,-151.0,0.000166,2]
[381062919,1755984642209,-151.0,0.000166,2]
[381062921,1755984642219,-405.249616,0.000166,2]
[381062922,1755984642228,-151.0,0.000166,2]
[381062923,1755984642239,-151.0,0.000166,2]
[381062924,1755984642248,-405.249616,0.000166,2]
[381062925,1755984642257,-151.0,0.000166,2]
[381062926,1755984642266,-1443.148898,0.000166,2]
[381062927,1755984642276,-787.714598,0.000166,2]
[381062928,1755984642285,-787.714598,0.000166,2]
[381062929,1755984642300,-787.714598,0.000166,2]
[381062930,1755984642310,-250.208065,0.000166,2]
[381062931,1755984642319,-151.0,0.000166,2]
[381062932,1755984642328,-787.714598,0.000166,2]
[381062933,1755984642338,-250.208065,0.000166,2]
[381062934,1755984642347,-250.208065,0.000166,2]
[381062935,1755984642357,-1443.148898,0.000166,2]
[381062936,1755984642366,-250.208065,0.000166,2]
[381062937,1755984642375,-151.0,0.000166,2]
[381062938,1755984642385,-151.0,0.000166,2]
[381062939,1755984642394,-1443.148898,0.000166,2]
[381062940,1755984642403,-151.0,0.000166,2]
[381062941,1755984642413,-1443.148898,0.000166,2]
[381062942,1755984642423,-151.0,0.000166,2]
[381062943,1755984642432,-151.0,0.000166,2]
[381062944,1755984642441,-162.89964,0.000166,2]
[381062945,1755984642451,-151.0,0.000166,2]
[381062946,1755984642460,-211.443587,0.000166,2]
[381062947,1755984642470,-162.89964,0.000166,2]
[381062948,1755984642480,-151.0,0.000166,2]
[381062949,1755984642490,-151.0,0.000166,2]
[381062950,1755984642500,-162.89964,0.000166,2]
[381062951,1755984642509,-162.89964,0.000166,2]
[381062953,1755984642518,-458.60200496,0.000166,3]
[381062954,1755984642528,-151.0,0.000166,2]
[381062955,1755984642538,-151.0,0.000166,2]
[381062956,1755984642547,-151.0,0.000166,2]
[381062957,1755984642557,-151.0,0.000166,2]
[381062958,1755984642566,-151.0,0.000166,2]
[381062959,1755984642575,-151.0,0.000166,2]
[381062960,1755984642585,-151.0,0.000166,2]
[381062961,1755984642595,-151.0,0.000166,2]
[381062962,1755984642604,-151.0,0.000166,2]
[381062963,1755984642614,-151.0,0.000166,2]
[381062964,1755984642624,-151.0,0.000166,2]
[381062965,1755984642633,-4416.695542,0.000166,2]
[381062966,1755984642643,-151.0,0.000166,2]
[381062967,1755984642652,-151.0,0.000166,2]
[381062968,1755984642661,-4416.695542,0.000166,2]
[381062969,1755984642671,-151.0,0.000166,2]
[381062970,1755984642680,-151.0,0.000166,2]
[381062971,1755984642690,-4416.695542,0.000166,2]
[381062972,1755984642699,-151.0,0.000166,2]
[381062973,1755984642709,-151.0,0.000166,2]
[381062974,1755984642718,-4416.695542,0.000166,2]
[381062975,1755984642727,-151.0,0.000166,2]
[381062976,1755984642736,-151.0,0.000166,2]
[381062977,1755984642746,-151.0,0.000166,2]
[381062978,1755984642755,-151.0,0.000166,2]
[381062979,1755984642765,-151.0,0.000166,2]
[381062980,1755984642775,-219.0,0.00016942,2]
[381062981,1755984642784,-3500.0,0.00016986,2]
[381062982,1755984642793,-51415.75756611,0.00017,2]
[381062983,1755984642802,-50397.67274759,0.00017,2]
[381062984,1755984642812,-1157.29183092,0.00017016,2]
[381062985,1755984642822,-475.15928909,0.00017248,2]
[381062986,1755984642831,-20000.0,0.000175,2]
[381062987,1755984642841,-4000.0,0.00017534,2]
[381062988,1755984642851,-153.20915429,0.00017558,2]
[381062989,1755984642860,-19050.27,0.000177,2]
[381062990,1755984642870,-456.60604795,0.00017741,2]
[381062991,1755984642882,-2005.8657454,0.000178,2]
[381062992,1755984642891,-500.0,0.00017808,2]
[381062993,1755984642900,-500.0,0.00017856,2]
[381062994,1755984642910,-300.0,0.00017899,2]
[381062995,1755984642920,-3288.81,0.000179,2]
[381062996,1755984642931,-99913.34,0.000179,2]
[381062997,1755984642940,-500.0,0.00017904,2]
[381062998,1755984642951,-500.0,0.00017952,2]
[381062999,1755984642960,-300.0,0.00017999,2]
[381063000,1755984642969,-300.0,0.00017999,2]
[381063001,1755984642979,-778828.14034017,0.00018,2]
[381063002,1755984642988,-18300.29587842,0.00018,2]
[381063003,1755984642997,-151.0,0.00018,2]
[381063004,1755984643007,-151.0,0.00018,2]
[381063005,1755984643016,-151.0,0.00018,2]
[381063006,1755984643026,-151.0,0.00018,2]
[381063007,1755984643035,-151.0,0.00018,2]
[381063008,1755984643045,-151.0,0.00018,2]
[381063009,1755984643054,-151.0,0.00018,2]
[381063010,1755984643064,-151.0,0.00018,2]
[381063011,1755984643074,-289.032764,0.00018,2]
[381063012,1755984643084,-151.0,0.00018,2]
[381063013,1755984643094,-289.032764,0.00018,2]
[381063014,1755984643104,-487.602329,0.00018,2]
[381063015,1755984643114,-151.0,0.00018,2]
[381063016,1755984643124,-289.032764,0.00018,2]
[381063017,1755984643134,-487.602329,0.00018,2]
[381063018,1755984643143,-151.0,0.00018,2]
[381063019,1755984643153,-487.602329,0.00018,2]
[381063020,1755984643162,-151.0,0.00018,2]
[381063021,1755984643172,-289.032764,0.00018,2]
[381063022,1755984643182,-227.112771,0.00018,2]
[381063023,1755984643191,-487.602329,0.00018,2]
[381063024,1755984643201,-216.818701,0.00018,2]
[381063025,1755984643211,-151.0,0.00018,2]
[381063026,1755984643221,-151.0,0.00018,2]
[381063027,1755984643230,-227.112771,0.00018,2]
[381063028,1755984643240,-216.818701,0.00018,2]
[381063030,1755984643250,-151.0,0.00018,2]
[381063031,1755984643260,-151.0,0.00018,2]
[381063032,1755984643271,-216.818701,0.00018,2]
[381063033,1755984643280,-227.112771,0.00018,2]
[381063034,1755984643291,-216.818701,0.00018,2]
[381063035,1755984643302,-227.112771,0.00018,2]
[381063036,1755984643312,-151.144145,0.00018,2]
[381063037,1755984643325,-683.02997,0.00018,2]
[381063038,1755984643345,-151.0,0.00018,2]
[381063039,1755984643355,-683.02997,0.00018,2]
[381063040,1755984643370,-151.0,0.00018,2]
[381063041,1755984643388,-683.02997,0.00018,2]
[381063042,1755984643398,-151.0,0.00018,2]
[381063043,1755984643407,-683.02997,0.00018,2]
[381063044,1755984643419,-164.47188,0.00018,2]
[381063045,1755984643429,-151.0,0.00018,2]
[381063046,1755984643438,-151.0,0.00018,2]
[381063047,1755984643448,-161.6576,0.00018,2]
[381063048,1755984643458,-151.054298,0.00018,2]
[381063049,1755984643467,-151.0,0.00018,2]
[381063050,1755984643477,-151.0,0.00018,2]
[381063051,1755984643486,-2520.587804,0.00018,2]
[381063052,1755984643495,-2520.587804,0.00018,2]
[381063053,1755984643505,-2520.587804,0.00018,2]
[381063054,1755984643515,-2520.587804,0.00018,2]
[381063055,1755984643525,-1444.486767,0.00018,2]
[381063056,1755984643534,-1444.486767,0.00018,2]
[381063057,1755984643543,-151.0,0.00018,2]
[381063058,1755984643553,-1444.486767,0.00018,2]
[381063059,1755984643563,-151.0,0.00018,2]
[381063060,1755984643572,-1444.486767,0.00018,2]
[381063061,1755984643582,-202.023752,0.00018,2]
[381063062,1755984643591,-394.917862,0.00018,2]
[381063063,1755984643601,-381.016136,0.00018,2]
[381063064,1755984643611,-394.917862,0.00018,2]
[381063065,1755984643620,-381.016136,0.00018,2]
[381063066,1755984643629,-211.767634,0.00018,2]
[381063067,1755984643639,-381.016136,0.00018,2]
[381063068,1755984643652,-151.0,0.00018,2]